bitfinex-derivatives/quotes_BTCF0:USTF0_20251118
["timestamp","ask_amount","ask_price","bid_price","bid_amount"]
[1763476294818,0.3608,91688.0,91680.0,0.0009307]
[1763476295029,0.27072,91687.0,91680.0,0.0009307]
[1763476295315,0.27072,91687.0,91680.0,0.01016069]
[1763476295518,0.27072,91687.0,91686.0,0.03411]
[1763476295826,0.27072,91687.0,91680.0,0.00922999]
[1763476296123,0.27072,91687.0,91680.0,0.01016069]
[1763476296523,0.10904001,91686.0,91677.0,0.3608]
[1763476296821,0.3608,91678.0,91644.0,0.3608]
[1763476297125,0.3608,91652.0,91640.0,0.04427069]
[1763476297317,0.002,91650.0,91640.0,0.04427069]
[1763476297514,0.3608,91644.0,91640.0,0.0350407]
[1763476297718,0.3608,91644.0,91640.0,0.0009307]
[1763476297914,0.3608,91644.0,91643.0,0.11521]
[1763476298134,0.3608,91644.0,91640.0,0.0009307]
[1763476298622,0.63144,91644.0,91640.0,0.0009307]
[1763476299120,0.27064,91644.0,91640.0,0.0009307]
[1763476299322,0.3608,91642.0,91636.0,0.00016359]
[1763476300317,0.3608,91642.0,91630.0,0.0009307]
[1763476300517,0.002,91640.0,91630.0,0.01016069]
[1763476301625,0.002,91640.0,91639.0,0.05659]
[1763476301826,0.002,91640.0,91630.0,0.00922999]
[1763476302022,0.002,91640.0,91630.0,0.01016069]
[1763476302625,0.27056,91639.0,91630.0,0.01016069]
[1763476303027,0.27056,91639.0,91630.0,0.0009307]
[1763476303226,0.3608,91631.0,91626.0,0.00016245]
[1763476303426,0.7216,91631.0,91603.0,0.3608]
[1763476303728,0.3608,91622.0,91603.0,0.3608]
[1763476303929,0.3608,91612.0,91603.0,0.3608]
[1763476304233,0.27052,91611.0,91587.0,0.3608]
[1763476304433,0.35592279,91611.0,91587.0,0.3608]
[1763476304633,0.3608,91595.0,91590.0,0.01016069]
[1763476305128,0.3608,91595.0,91587.0,0.3608]
[1763476305327,0.3608,91589.0,91560.0,0.03411]
[1763476305528,0.3608,91569.0,91560.0,0.03411]
[1763476305726,0.00219803,91580.0,91562.0,0.3608]
[1763476305727,1.5,91568.0,91562.0,0.3608]
[1763476305926,0.00219803,91580.0,91579.0,0.11521]
[1763476306326,0.00016377,91587.0,91579.0,0.11521]
[1763476306327,0.00016377,91587.0,91586.0,0.11521]
[1763476306519,0.00016377,91587.0,91572.0,0.3608]
[1763476306729,0.3608,91573.0,91545.0,0.3608]
[1763476306930,0.7216,91556.0,91520.0,0.39491]
[1763476307230,0.99312,91556.0,91529.0,0.3608]
[1763476307434,0.3608,91536.0,91520.0,0.39491]
[1763476307735,0.3608,91536.0,91520.0,0.03411]
[1763476307736,0.3608,91528.0,91520.0,0.03411]
[1763476307934,0.3608,91528.0,91503.0,0.3608]
[1763476308230,0.00012457,91527.0,91503.0,0.3608]
[1763476308420,0.3608,91505.0,91495.0,0.3608]
[1763476308622,0.36092617,91505.0,91495.0,0.3608]
[1763476309030,0.00012617,91505.0,91495.0,0.3608]
[1763476310028,0.00016388,91514.0,91512.0,0.03411]
[1763476310227,0.00016388,91514.0,91513.0,0.3608]
[1763476310727,0.00016388,91514.0,91512.0,0.03411]
[1763476311033,0.00016388,91514.0,91512.0,0.39491]
[1763476311234,0.00016388,91514.0,91513.0,0.11521]
[1763476311724,0.3608,91533.0,91531.0,0.11521]
[1763476311927,0.3608,91547.0,91531.0,0.11521]
[1763476312130,0.33263455,91547.0,91546.0,0.11521]
[1763476312319,0.33263455,91547.0,91540.0,0.39491]
[1763476312720,0.00219803,91550.0,91540.0,0.39491]
[1763476312926,0.00219803,91550.0,91549.0,0.11521]
[1763476314726,0.00219803,91550.0,91540.0,0.39491]
[1763476314727,0.00219803,91550.0,91540.0,0.03411]
[1763476314937,0.3608,91543.0,91540.0,0.03411]
[1763476315537,0.00219803,91550.0,91542.0,0.11521]
[1763476315722,0.00219803,91550.0,91549.0,0.11521]
[1763476316437,1.91e-06,91553.0,91552.0,0.11521]
[1763476316731,0.27184,91572.0,91564.0,0.03411]
[1763476316936,0.00073267,91570.0,91569.0,0.11521]
[1763476317326,1.8608,91588.0,91572.0,0.12056]
[1763476317533,1.8608,91588.0,91580.0,0.00219803]
[1763476318529,0.05899,91581.0,91580.0,0.00219803]
[1763476318737,1.8608,91588.0,91580.0,0.00219803]
[1763476320238,1.8608,91588.0,91575.0,0.3608]
[1763476320432,0.3608,91580.0,91571.0,0.00016388]
[1763476320935,0.00016388,91589.0,91588.0,0.12056]
[1763476321132,0.3608,91611.0,91590.0,0.00219803]
[1763476321332,0.08671524,91628.0,91610.0,0.12056]
[1763476321535,0.3608,91631.0,91620.0,0.00219803]
[1763476321536,1.5,91627.0,91620.0,0.00219803]
[1763476322132,1.5,91627.0,91625.0,0.3608]
[1763476322338,0.00016378,91633.0,91632.0,0.12056]
[1763476322838,0.3608,91650.0,91632.0,0.12056]
[1763476323135,0.3608,91657.0,91641.0,0.3608]
[1763476323336,0.3608,91657.0,91650.0,0.00219803]
[1763476323547,0.6326,91668.0,91650.0,0.00219803]
[1763476323742,0.3608,91668.0,91650.0,0.00219803]
[1763476323927,0.00016369,91668.0,91650.0,0.00236172]
[1763476324131,0.3608,91661.0,91650.0,0.00236172]
[1763476324431,0.3608,91687.0,91667.0,0.12056]
[1763476324638,0.3608,91687.0,91680.0,0.00219803]
[1763476324639,0.11701,91681.0,91680.0,0.00219803]
[1763476325033,0.3608,91686.0,91661.0,0.3608]
[1763476325229,0.3608,91674.0,91670.0,0.00219803]
[1763476325648,0.00016359,91681.0,91680.0,0.12056]
[1763476325946,0.3608,91704.0,91680.0,0.12275803]
[1763476326128,0.37112427,91712.0,91693.0,0.3608]
[1763476326330,0.37112427,91712.0,91701.0,0.3608]
[1763476326331,0.01032427,91712.0,91701.0,0.3608]
[1763476326533,0.01032427,91712.0,91711.0,0.12056]
[1763476326736,0.0001082,91721.0,91711.0,0.12056]
[1763476327143,0.0001082,91721.0,91720.0,0.12056]
[1763476327334,0.0001082,91721.0,91720.0,0.12275803]
[1763476327638,0.3608,91748.0,91725.0,0.12056]
[1763476327936,0.3608,91748.0,91747.0,0.12056]
[1763476328339,0.3608,91770.0,91750.0,0.00219803]
[1763476328530,0.3608,91770.0,91755.0,0.3608]
[1763476328734,0.27172,91776.0,91763.0,0.3608]
[1763476328939,0.3608,91778.0,91770.0,0.00219803]
[1763476329633,0.3608,91774.0,91753.0,0.00016349]
[1763476329942,0.3608,91774.0,91760.0,0.00219803]
[1763476330530,0.00219803,91770.0,91760.0,0.00073267]
[1763476331138,0.00219803,91770.0,91767.0,0.3608]
[1763476331338,0.3608,91792.0,91767.0,0.3608]
[1763476331534,0.09692773,91866.0,91760.0,0.00073267]
[1763476331535,0.08636565,91832.0,91791.0,0.3608]
[1763476331734,0.3608,91835.0,91800.0,0.36153267]
[1763476331735,0.11701,91801.0,91800.0,0.36153267]
[1763476332346,0.3608,91822.0,91800.0,0.36153267]
[1763476332347,0.0167,91848.0,91800.0,1.03333267]
[1763476332544,0.00219803,91840.0,91838.0,0.3608]
[1763476333039,0.6326,91869.0,91838.0,0.3608]
[1763476333233,0.6326,91869.0,91800.0,0.59631495]
[1763476333234,0.3608,91839.0,91809.0,0.26937]
[1763476333431,0.00219803,91820.0,91767.0,0.3604]
[1763476333653,0.32671298,91820.0,91768.0,0.19944]
[1763476333943,0.00219803,91820.0,91780.0,0.00999999]
[1763476334334,0.00219803,91820.0,91790.0,0.00999999]
[1763476334740,0.3608,91809.0,91796.0,0.00016339]
[1763476334934,0.35198924,91817.0,91808.0,0.3608]
[1763476335140,0.3608,91840.0,91816.0,0.3608]
[1763476335343,0.3608,91853.0,91839.0,0.3608]
[1763476335735,0.3608,91868.0,91840.0,0.10884]
[1763476335736,1.5,91867.0,91840.0,0.10884]
[1763476335932,1.5,91867.0,91828.0,0.3608]
[1763476335933,0.36299803,91860.0,91828.0,0.3608]
[1763476336131,0.3608,91851.0,91844.0,0.00016339]
[1763476336341,0.00219803,91850.0,91844.0,0.27276339]
[1763476336540,0.00219803,91850.0,91848.0,0.3608]
[1763476336742,0.3608,91860.0,91848.0,0.3608]
[1763476336743,0.36299803,91860.0,91848.0,0.3608]
[1763476336949,0.36299803,91860.0,91805.0,0.1090498]
[1763476336950,0.03339,91832.0,91818.0,0.3608]
[1763476337242,0.03339,91832.0,91782.0,0.27252]
[1763476337243,0.03339,91806.0,91782.0,0.27252]
[1763476337549,0.3608,91801.0,91782.0,0.27252]
[1763476337750,0.4598994,91801.0,91782.0,0.27252]
[1763476338046,0.00219803,91800.0,91783.0,0.27316]
[1763476338244,0.4598994,91801.0,91781.0,0.3608]
[1763476338554,0.00016339,91800.0,91799.0,0.3608]
[1763476338752,0.01757339,91801.0,91791.0,0.3608]
[1763476338942,0.3608,91814.0,91791.0,0.46972]
[1763476339248,0.3608,91832.0,91804.0,0.3608]
[1763476339440,0.3608,91832.0,91810.0,0.00999999]
[1763476339634,0.3608,91815.0,91810.0,0.00999999]
[1763476339946,0.26937,91815.0,91812.0,0.00016339]
[1763476340151,0.3608,91813.0,91808.0,0.2366]
[1763476340337,0.3608,91813.0,91806.0,0.00027231]
[1763476340646,0.3608,91813.0,91801.0,0.00016339]
[1763476340647,0.3608,91805.0,91801.0,0.00016339]
[1763476340838,0.05882803,91800.0,91785.0,0.0472]
[1763476341035,0.3608,91799.0,91785.0,0.0472]
[1763476341235,0.3608,91797.0,91785.0,0.0472]
[1763476341442,0.00219803,91800.0,91785.0,0.0472]
[1763476341443,0.3608,91796.0,91785.0,0.0472]
[1763476341733,0.36299803,91790.0,91781.0,0.00016339]
[1763476341942,0.21343,91782.0,91781.0,0.00016339]
[1763476342242,0.21343,91782.0,91781.0,0.27308339]
[1763476342547,0.00016339,91800.0,91781.0,0.67308339]
[1763476342744,0.3608,91814.0,91793.0,0.3608]
[1763476343051,0.05663,91935.0,91810.0,0.00999999]
[1763476343052,0.05663,91881.0,91810.0,0.00999999]
[1763476343251,0.00219803,91870.0,91820.0,0.00999999]
[1763476343746,0.3608,91853.0,91839.0,0.3608]
[1763476343947,0.00219803,91850.0,91839.0,0.3608]
[1763476344737,0.05663,91881.0,91849.0,0.3608]
[1763476344738,0.3608,91870.0,91849.0,0.3608]
[1763476344940,0.3608,91868.0,91850.0,0.27288]
[1763476345245,0.00219803,91870.0,91867.0,0.3608]
[1763476345444,0.3608,91892.0,91867.0,0.3608]
[1763476345648,0.00219803,91890.0,91884.0,0.3608]
[1763476345850,0.00219803,91890.0,91885.0,0.2728]
[1763476346644,0.00219803,91890.0,91884.0,0.3608]
[1763476346857,0.00073267,91890.0,91885.0,0.27276]
[1763476347541,0.3608,91900.0,91885.0,0.27276]
[1763476347737,0.3608,91902.0,91892.0,0.3608]
[1763476347940,0.3608,91920.0,91900.0,0.00219803]
[1763476347941,0.3608,91911.0,91900.0,0.00219803]
[1763476348140,0.3608,91911.0,91903.0,0.3608]
[1763476348545,0.00073267,91910.0,91903.0,0.3608]
[1763476348941,0.00073267,91910.0,91904.0,0.2726]
[1763476349248,0.3608,91928.0,91904.0,0.7814]
[1763476349444,0.3608,91928.0,91920.0,0.00219803]
[1763476349645,0.00073267,91950.0,91927.0,0.3608]
[1763476349953,0.3608,91940.0,91929.0,0.0001632]
[1763476350143,0.00073267,91940.0,91930.0,0.00219803]
[1763476350347,0.3608,91955.0,91939.0,0.3608]
[1763476350557,0.3608,91955.0,91940.0,0.11091803]
[1763476350852,0.3608,91977.0,91953.0,0.3608]
[1763476351052,0.3608,91977.0,91970.0,0.00219803]
[1763476351247,0.3608,91985.0,91970.0,0.00219803]
[1763476351441,0.07779402,92099.0,91970.0,0.00219803]
[1763476351442,0.00073267,92010.0,91970.0,0.01219802]
[1763476351655,0.00073267,92010.0,91971.0,0.38128]
[1763476351852,0.00073267,92010.0,92000.0,0.00219803]
[1763476352055,0.00073267,92010.0,92001.0,0.27256]
[1763476352653,0.00073267,92010.0,92002.0,0.27252]
[1763476353045,0.3608,92020.0,92003.0,0.27244]
[1763476353245,0.3608,92020.0,92000.0,0.00219803]
[1763476353246,0.3608,92096.0,92010.0,0.00999999]
[1763476353454,0.00073267,92050.0,92020.0,0.00219803]
[1763476353755,0.00073267,92050.0,92029.0,0.00016302]
[1763476353957,0.0452,92114.0,92040.0,0.00219803]
[1763476354162,0.00073267,92080.0,92040.0,0.00219803]
[1763476354545,0.00073267,92080.0,92051.0,0.00016302]
[1763476354851,0.00073267,92080.0,92070.0,0.00219803]
[1763476355050,0.00073267,92080.0,92071.0,0.27292]
[1763476355255,0.05719,92124.0,92071.0,0.27292]
[1763476355446,0.00073267,92090.0,92080.0,0.00219803]
[1763476357055,0.00073267,92090.0,92074.0,0.00016291]
[1763476357263,0.05719,92092.0,92060.0,0.13648]
[1763476357264,0.05719,92064.0,92060.0,0.13648]
[1763476357555,0.05719,92064.0,92050.0,0.00219803]
[1763476357765,0.00073267,92060.0,92050.0,0.00219803]
[1763476358360,0.00073267,92060.0,92059.0,0.3608]
[1763476358664,0.00016131,92064.0,92060.0,0.00219803]
[1763476359261,0.00016131,92064.0,92059.0,0.3608]
[1763476359457,0.05719,92075.0,92059.0,0.3608]
[1763476361377,0.02009881,92120.0,92113.0,0.3608]
[1763476361585,0.02009881,92120.0,92104.0,0.3608]
[1763476361586,0.3608,92115.0,92104.0,0.3608]
[1763476361880,0.02009881,92120.0,92104.0,0.3608]
[1763476361881,0.00073267,92110.0,92104.0,0.3608]
[1763476362079,0.00073267,92110.0,92108.0,0.3608]
[1763476362672,0.02009881,92120.0,92108.0,0.3608]
[1763476362872,0.02009881,92120.0,92119.0,0.3608]
[1763476363878,0.02009881,92120.0,92119.0,0.63372]
[1763476364177,0.02009881,92120.0,92119.0,0.3608]
[1763476364384,0.02009881,92120.0,92108.0,0.3608]
[1763476364677,0.02009881,92120.0,92110.0,0.00219803]
[1763476364873,0.02009881,92120.0,92118.0,0.3608]
[1763476365178,0.01936614,92120.0,92118.0,0.3608]
[1763476365378,0.3608,92161.0,92118.0,0.3608]
[1763476365379,0.3608,92161.0,92119.0,0.27292]
[1763476365585,0.3608,92161.0,92147.0,0.3608]
[1763476365586,0.00073267,92150.0,92147.0,0.3608]
[1763476366579,0.07779402,92300.0,92147.0,0.3608]
[1763476366580,0.00073267,92160.0,92147.0,0.3608]
[1763476366769,0.00073267,92160.0,92159.0,0.3608]
[1763476366974,0.3608,92180.0,92160.0,0.00219803]
[1763476367173,0.00073267,92170.0,92160.0,0.00219803]
[1763476367376,0.3608,92179.0,92160.0,0.00219803]
[1763476367572,0.05719,92205.0,92146.0,0.20617]
[1763476367573,0.05719,92151.0,92146.0,0.20617]
[1763476367776,0.05719,92124.0,92109.0,0.3608]
[1763476367983,0.05719,92124.0,92111.0,0.3608]
[1763476368384,1.5,92123.0,92111.0,0.3608]
[1763476368884,0.05719,92124.0,92111.0,0.3608]
[1763476369389,0.05719,92124.0,92110.0,0.00219803]
[1763476369390,0.3608,92118.0,92110.0,0.00219803]
[1763476369576,1.5,92123.0,92110.0,0.00219803]
[1763476369577,1.5,92123.0,92113.0,0.3608]
[1763476369778,0.00999999,92170.0,92121.0,0.3608]
[1763476369779,0.3608,92156.0,92121.0,0.3608]
[1763476370079,0.05719,92124.0,92121.0,0.3608]
[1763476370476,0.3608,92164.0,92122.0,0.4]
[1763476370776,0.05719,92259.0,92122.0,0.4]
[1763476370777,0.3608,92178.0,92150.0,0.3608]
[1763476370982,1.5,92177.0,92163.0,0.3608]
[1763476371178,1.5,92177.0,92170.0,0.00219803]
[1763476371482,0.3608,92178.0,92171.0,0.3608]
[1763476371781,0.00226584,92175.0,92171.0,0.3608]
[1763476371987,0.00226584,92175.0,92155.0,0.00016281]
[1763476372284,0.00226584,92175.0,92161.0,0.3608]
[1763476372788,0.3608,92178.0,92155.0,0.00016281]
[1763476372789,0.00226584,92168.0,92155.0,0.00016281]
[1763476372978,0.3608,92161.0,92155.0,0.00016281]
[1763476373282,0.00226584,92168.0,92152.0,0.3608]
[1763476373779,1.5,92174.0,92161.0,0.3608]
[1763476373991,0.3608,92185.0,92161.0,0.35853416]
[1763476374185,0.3608,92177.0,92170.0,0.00219803]
[1763476374481,0.3608,92177.0,92164.0,0.00016281]
[1763476374682,0.3608,92177.0,92170.0,0.00219803]
[1763476374886,0.3608,92171.0,92151.0,0.3608]
[1763476375084,0.3608,92161.0,92151.0,0.3608]
[1763476375287,0.3608,92163.0,92151.0,0.3608]
[1763476375986,0.05719,92148.0,92142.0,0.3608]
[1763476376176,0.05719,92148.0,92123.0,0.3608]
[1763476376177,0.3608,92144.0,92123.0,0.3608]
[1763476376375,0.3608,92133.0,92130.0,0.00219803]
[1763476376875,0.3608,92133.0,92123.0,0.3608]
[1763476376876,0.05719,92124.0,92123.0,0.3608]
[1763476377078,0.3608,92133.0,92123.0,0.3608]
[1763476377286,0.3608,92144.0,92120.0,0.00219803]
[1763476377482,0.3608,92144.0,92127.0,0.3608]
[1763476377483,0.00016281,92136.0,92127.0,0.3608]
[1763476377680,0.00016281,92136.0,92135.0,0.3608]
[1763476378487,0.3608,92162.0,92135.0,0.634]
[1763476378793,0.3608,92155.0,92140.0,0.00219803]
[1763476379089,0.3608,92174.0,92154.0,0.3608]
[1763476379384,0.00999999,92200.0,92154.0,0.3608]
[1763476379385,0.3608,92179.0,92163.0,0.3608]
[1763476379690,0.3608,92192.0,92172.0,0.3608]
[1763476379879,0.00016281,92180.0,92172.0,0.3608]
[1763476380478,0.3608,92211.0,92179.0,0.3608]
[1763476380685,0.3608,92211.0,92195.0,0.3608]
[1763476380890,0.3608,92199.0,92166.0,0.3608]
[1763476381090,0.3608,92189.0,92170.0,0.00219803]
[1763476381287,0.3608,92189.0,92174.0,0.3608]
[1763476381486,0.3608,92189.0,92180.0,0.00219803]
[1763476381684,0.3608,92182.0,92180.0,0.00219803]
[1763476381887,0.3608,92182.0,92172.0,0.00016271]
[1763476382184,0.3608,92173.0,92172.0,0.00016271]
[1763476382382,0.3608,92173.0,92122.0,0.3608]
[1763476382581,0.3608,92132.0,92122.0,0.3608]
[1763476382789,0.3608,92129.0,92120.0,0.00219803]
[1763476383090,0.3608,92150.0,92126.0,0.3608]
[1763476383291,0.3608,92166.0,92149.0,0.3608]
[1763476383495,0.3608,92166.0,92160.0,0.00219803]
[1763476384084,0.3608,92166.0,92149.0,0.3608]
[1763476384289,0.3608,92158.0,92150.0,0.00219803]
[1763476384589,0.3608,92156.0,92148.0,0.0001628]
[1763476384792,0.3608,92156.0,92150.0,0.00219803]
[1763476385093,0.0001628,92167.0,92150.0,0.36299803]
[1763476385277,0.0001628,92167.0,92158.0,0.3608]
[1763476385481,0.3608,92191.0,92158.0,0.3608]
[1763476385482,0.3608,92200.0,92166.0,0.3608]
[1763476385794,0.3608,92200.0,92190.0,0.00219803]
[1763476386487,0.00016206,92204.0,92199.0,0.3608]
[1763476386680,0.3608,92244.0,92201.0,0.3608]
[1763476386681,0.3608,92235.0,92201.0,0.3608]
[1763476386883,0.3608,92235.0,92187.0,0.1085976]
[1763476386884,0.3608,92242.0,92219.0,0.3608]
[1763476387186,0.3608,92231.0,92220.0,0.00219803]
[1763476387591,0.3608,92231.0,92210.0,0.3608]
[1763476387592,0.3608,92221.0,92210.0,0.3608]
[1763476387884,0.07104,92232.0,92210.0,0.3608]
[1763476387885,0.43184,92232.0,92210.0,0.00219803]
[1763476388280,0.43184,92232.0,92217.0,0.3608]
[1763476388281,0.07104,92232.0,92217.0,0.3608]
[1763476388485,0.07104,92232.0,92207.0,0.3608]
[1763476388486,0.3608,92237.0,92220.0,0.00219803]
[1763476388687,0.3608,92229.0,92220.0,0.00219803]
[1763476388891,0.3608,92237.0,92223.0,0.3608]
[1763476389189,0.00027102,92246.0,92230.0,0.00219803]
[1763476389190,0.07104,92232.0,92230.0,0.00219803]
[1763476389378,0.00016272,92234.0,92230.0,0.00219803]
[1763476389586,0.00016272,92234.0,92231.0,0.3608]
[1763476390491,0.00149091,92233.0,92231.0,0.3608]
[1763476391086,0.004697,92260.0,92232.0,0.15839]
[1763476391290,0.34153873,92279.0,92249.0,0.3608]
[1763476391493,0.34153873,92279.0,92270.0,0.00219803]
[1763476391888,0.3608,92271.0,92270.0,0.00219803]
[1763476392195,0.3608,92279.0,92270.0,0.00219803]
[1763476392494,0.0002709,92286.0,92270.0,0.00219803]
[1763476392685,0.0002709,92286.0,92273.0,0.3608]
[1763476392887,0.3608,92274.0,92270.0,0.00219803]
[1763476393094,0.3608,92274.0,92261.0,0.00016262]
[1763476393396,0.3608,92262.0,92231.0,0.3608]
[1763476393591,0.0713109,92286.0,92240.0,0.00219803]
[1763476393592,0.3608,92248.0,92240.0,0.00219803]
[1763476393792,0.3608,92262.0,92240.0,0.00219803]
[1763476394094,0.3608,92283.0,92256.0,0.3608]
[1763476394306,0.3608,92283.0,92280.0,0.00219803]
[1763476394595,0.0002709,92286.0,92280.0,0.36299803]
[1763476395192,0.0002709,92286.0,92280.0,0.00219803]
[1763476395500,0.0002709,92286.0,92274.0,0.00016262]
[1763476395501,0.50836001,92285.0,92274.0,0.00016262]
[1763476395685,0.3608,92279.0,92253.0,0.3608]
[1763476395883,0.3608,92269.0,92260.0,0.00219803]
[1763476396088,0.0713109,92286.0,92262.0,0.3608]
[1763476396284,0.0002709,92286.0,92272.0,0.3608]
[1763476396499,0.0002709,92286.0,92280.0,0.00219803]
[1763476397391,0.0002709,92286.0,92280.0,0.36299803]
[1763476398498,0.00126848,92283.0,92280.0,0.36299803]
[1763476398799,1e-07,92282.0,92280.0,0.36299803]
[1763476398999,0.3608,92313.0,92280.0,0.36299803]
[1763476399000,0.3608,92320.0,92281.0,0.4]
[1763476399306,0.37505443,92330.0,92312.0,0.3608]
[1763476399493,0.37505443,92330.0,92320.0,0.00219803]
[1763476399694,0.3608,92322.0,92320.0,0.00219803]
[1763476400305,0.0144167,92330.0,92321.0,0.3608]
[1763476401999,0.0144167,92330.0,92323.0,0.3608]
[1763476402599,0.0144167,92330.0,92320.0,0.00219803]
[1763476402600,0.3608,92329.0,92320.0,0.00219803]
[1763476402796,0.3608,92329.0,92312.0,0.00016252]
[1763476402797,0.3608,92321.0,92312.0,0.00016252]
[1763476402996,0.3608,92321.0,92259.0,0.1684934]
[1763476402997,0.3608,92313.0,92286.0,0.3608]
[1763476403300,0.06697078,92326.0,92278.0,0.3608]
[1763476403301,0.3608,92287.0,92278.0,0.3608]
[1763476403499,0.06697078,92326.0,92286.0,0.3608]
[1763476403500,0.3608,92308.0,92286.0,0.3608]
[1763476403694,0.3608,92320.0,92300.0,0.3608]
[1763476403903,0.06697078,92326.0,92310.0,0.00219803]
[1763476403904,0.3608,92321.0,92310.0,0.00219803]
[1763476404110,0.00027078,92326.0,92316.0,0.3608]
[1763476404403,0.00027078,92326.0,92324.0,0.3608]
[1763476405910,0.06697078,92326.0,92317.0,0.3608]
[1763476406210,0.3608,92318.0,92278.0,0.3608]
[1763476406394,0.06697078,92326.0,92280.0,0.00219803]
[1763476406395,0.3608,92287.0,92280.0,0.00219803]
[1763476406599,0.3608,92298.0,92282.0,0.3608]
[1763476407106,0.3608,92298.0,92290.0,0.00219803]
[1763476407406,0.00016252,92303.0,92290.0,0.36299803]
[1763476407605,0.00016252,92303.0,92300.0,0.3608]
[1763476407806,0.00016252,92303.0,92290.0,0.36299803]
[1763476408510,0.00027078,92326.0,92301.0,0.3608]
[1763476408711,0.3608,92310.0,92301.0,0.3608]
[1763476409200,0.3608,92306.0,92300.0,0.00219803]
[1763476409602,0.3608,92306.0,92270.0,0.3608]
[1763476409814,0.3608,92287.0,92280.0,0.36299803]
[1763476410110,0.00016252,92293.0,92280.0,0.36299803]
[1763476410505,0.00016252,92293.0,92288.0,0.3608]
[1763476410696,0.00016252,92293.0,92280.0,0.36299803]
[1763476411111,0.00016252,92293.0,92288.0,0.3608]
[1763476411614,0.3608,92289.0,92274.0,0.00016252]
[1763476411803,0.3608,92289.0,92280.0,0.00219803]
[1763476412000,0.3608,92289.0,92274.0,0.00016252]
[1763476412001,0.3608,92281.0,92274.0,0.00016252]
[1763476412396,0.3608,92281.0,92254.0,0.3608]
[1763476412397,0.10836001,92280.0,92262.0,0.3608]
[1763476412603,0.3608,92268.0,92260.0,0.00219803]
[1763476413408,0.3608,92268.0,92245.0,0.3608]
[1763476413409,0.7608,92268.0,92245.0,0.3608]
[1763476413599,0.3608,92258.0,92250.0,0.00073267]
[1763476413803,0.06756,92248.0,92247.0,2.52e-06]
[1763476414004,0.06756,92248.0,92204.0,0.3608]
[1763476414005,0.42836,92248.0,92204.0,0.3608]
[1763476414204,0.42836,92248.0,92210.0,0.00073267]
[1763476414205,0.3608,92215.0,92210.0,0.00073267]
[1763476414506,0.3608,92226.0,92210.0,0.00073267]
[1763476414507,0.00219803,92220.0,92212.0,0.3608]
[1763476414710,0.09692773,92291.0,92212.0,0.3608]
[1763476414711,0.00027078,92326.0,92307.0,0.28654984]
[1763476415004,0.06756,92378.0,92340.0,0.00999999]
[1763476415005,0.06756,92352.0,92340.0,0.00999999]
[1763476415209,0.06756,92352.0,92340.0,0.00219803]
[1763476415412,0.06756,92352.0,92318.0,0.28004]
[1763476415413,9.816e-05,92351.0,92318.0,0.28004]
[1763476415610,0.00010158,92350.0,92337.0,2.48e-06]
[1763476415811,0.06756,92352.0,92349.0,0.54655]
[1763476416107,0.06756,92352.0,92320.0,0.00219803]
[1763476416108,0.67124249,92349.0,92340.0,0.00219803]
[1763476416310,0.67124249,92349.0,92348.0,0.3608]
[1763476416505,0.7795225,92349.0,92348.0,0.34292457]
[1763476416704,0.00146535,92350.0,92326.0,0.3608]
[1763476416905,0.3608,92351.0,92339.0,0.00016248]
[1763476416906,0.00219803,92340.0,92339.0,0.00016248]
[1763476417406,0.00227828,92340.0,92339.0,0.00016248]
[1763476417807,0.40227828,92340.0,92326.0,0.3608]
[1763476418114,0.06756,92310.0,92308.0,0.3608]
[1763476418316,8.031e-05,92309.0,92300.0,0.3608]
[1763476418613,0.36088031,92309.0,92300.0,0.3608]
[1763476418908,0.36088031,92309.0,92288.0,0.3608]
[1763476418909,0.3608,92301.0,92295.0,0.00010855]
[1763476419120,0.00227825,92300.0,92295.0,0.00010855]
[1763476420405,0.00227825,92300.0,92299.0,0.3608]
[1763476420601,8.022e-05,92300.0,92299.0,0.3608]
[1763476420805,0.00016248,92314.0,92300.0,0.00073267]
[1763476421004,0.00219803,92310.0,92309.0,0.3608]
[1763476421707,0.00013196,92310.0,92309.0,0.3608]
[1763476422210,0.00232999,92310.0,92309.0,0.3608]
[1763476422507,0.00013196,92310.0,92309.0,0.3608]
[1763476422708,0.00016248,92314.0,92310.0,0.00073267]
[1763476422909,0.3608,92338.0,92313.0,0.3608]
[1763476423217,0.3608,92338.0,92310.0,0.10905267]
[1763476423218,0.00219803,92320.0,92310.0,0.00073267]
[1763476423408,0.00219803,92320.0,92304.0,0.3608]
[1763476423409,0.06756,92307.0,92304.0,0.3608]
[1763476423902,0.06756,92307.0,92300.0,0.00073267]
[1763476424103,0.3608,92303.0,92296.0,0.00016248]
[1763476424611,0.2796,92302.0,92296.0,0.00016248]
[1763476425007,0.2796,92302.0,92286.0,0.34567254]
[1763476425213,0.00219803,92300.0,92290.0,0.00073267]
[1763476425706,0.00219803,92300.0,92295.0,0.3608]
[1763476426103,0.00219803,92300.0,92290.0,0.00073267]
[1763476426308,0.3608,92297.0,92290.0,0.00073267]
[1763476426611,0.3608,92297.0,92288.0,0.00010855]
[1763476426917,0.06756,92286.0,92278.0,0.36093979]
[1763476427122,0.42836,92286.0,92268.0,0.3608]
[1763476427306,0.00219803,92280.0,92268.0,0.3608]
[1763476427507,0.3608,92277.0,92268.0,0.3608]
[1763476427707,0.3608,92277.0,92250.0,0.3608]
[1763476427708,0.3608,92277.0,92269.0,0.03569747]
[1763476427903,0.3608,92277.0,92270.0,0.03569747]
[1763476428212,0.00012414,92276.0,92271.0,0.03569747]
[1763476428410,0.00012414,92276.0,92272.0,0.03569747]
[1763476428608,0.00012414,92276.0,92273.0,0.03569747]
[1763476428815,0.27908,92275.0,92274.0,0.03569747]
[1763476429208,0.06756,92259.0,92258.0,0.3608]
[1763476429410,0.06764243,92259.0,92258.0,0.3608]
[1763476429805,0.06764243,92259.0,92250.0,0.3608]
[1763476430420,8.243e-05,92259.0,92258.0,0.3608]
[1763476430610,0.3608,92287.0,92258.0,0.3608]
[1763476430810,0.3608,92294.0,92277.0,0.3608]
[1763476431017,0.00219803,92290.0,92277.0,0.3608]
[1763476431712,9.607e-05,92281.0,92277.0,0.3608]
[1763476433115,0.27889607,92281.0,92277.0,0.3608]